bitfinex-derivatives/quotes_BTCF0:USTF0_20210706
["timestamp","ask_amount","ask_price","bid_price","bid_amount"]
[1625567824351,0.56731419,33897.0,33890.0,1.21145558]
[1625567824449,0.62631419,33897.0,33890.0,1.21145558]
[1625567824551,0.56731419,33897.0,33890.0,1.21145558]
[1625567824652,0.059,33897.0,33891.0,0.51915353]
[1625567824753,0.059,33897.0,33891.0,0.57815353]
[1625567824854,0.059,33897.0,33896.0,3.7348]
[1625567825502,1.02130176,33897.0,33896.0,3.7348]
[1625567827407,1.02130176,33897.0,33895.0,0.51881861]
[1625567827509,1.08030176,33897.0,33894.0,0.51879521]
[1625567827609,1.31494176,33897.0,33894.0,0.51879521]
[1625567827809,1.31494176,33897.0,33891.0,0.5185349]
[1625567828512,1.25594176,33897.0,33891.0,0.5185349]
[1625567828613,1.31494176,33897.0,33891.0,0.5185349]
[1625567828862,1.31494176,33897.0,33890.0,0.51854489]
[1625567829062,1.31494176,33897.0,33890.0,1.209941]
[1625567829468,0.24057544,33891.0,33890.0,1.209941]
[1625567829570,0.29957544,33891.0,33890.0,1.209941]
[1625567829819,0.29957544,33891.0,33890.0,0.51854489]
[1625567830221,0.29957544,33891.0,33889.0,0.51828332]
[1625567830519,0.29957544,33891.0,33890.0,0.51827589]
[1625567830720,0.29957544,33891.0,33890.0,1.20928346]
[1625567830819,0.29957544,33891.0,33890.0,1.26828346]
[1625567830921,0.29957544,33891.0,33890.0,2.24578719]
[1625567831172,0.29957544,33891.0,33890.0,1.20928346]
[1625567831519,0.29957544,33891.0,33890.0,1.26828346]
[1625567831824,0.29957544,33891.0,33890.0,1.20928346]
[1625567832172,0.29957544,33891.0,33890.0,0.51827589]
[1625567833822,0.29957544,33891.0,33889.0,1.20869755]
[1625567834024,0.29957544,33891.0,33889.0,1.26769755]
[1625567834126,0.29957544,33891.0,33890.0,0.51790943]
[1625567834324,0.29957544,33891.0,33890.0,1.20845408]
[1625567834630,0.29957544,33891.0,33890.0,2.24426569]
[1625567834825,0.29957544,33891.0,33890.0,1.20845408]
[1625567835577,0.29957544,33891.0,33890.0,2.24425206]
[1625567836327,0.30057544,33891.0,33890.0,2.24425206]
[1625567836930,0.30057544,33891.0,33890.0,2.30325206]
[1625567837382,0.30057544,33891.0,33890.0,2.24425206]
[1625567837633,0.30057544,33891.0,33890.0,2.30325206]
[1625567837732,0.30057544,33891.0,33890.0,2.24425206]
[1625567838032,0.24157544,33891.0,33890.0,2.30325206]
[1625567838232,0.24157544,33891.0,33890.0,2.36225206]
[1625567838336,0.24157544,33891.0,33890.0,3.57387438]
[1625567838337,0.001,33891.0,33890.0,3.57387438]
[1625567838633,0.001,33891.0,33890.0,4.95450535]
[1625567838735,0.001,33891.0,33890.0,5.15450535]
[1625567838834,0.24057544,33892.0,33890.0,5.15450535]
[1625567839182,0.24057544,33892.0,33891.0,0.0624886]
[1625567839283,0.24057544,33892.0,33891.0,5.15384269]
[1625567839485,0.24057544,33892.0,33891.0,5.39441813]
[1625567839837,0.24057544,33892.0,33891.0,5.19441813]
[1625567842446,0.24057544,33892.0,33891.0,9.98081813]
[1625567843147,0.24057544,33892.0,33891.0,9.97732953]
[1625567843445,0.24057544,33892.0,33891.0,9.98081797]
[1625567845048,0.003,33901.0,33891.0,10.18081797]
[1625567845248,0.69803543,33911.0,33891.0,10.18081797]
[1625567845350,0.50853791,33913.0,33900.0,2.24483283]
[1625567845600,1.35581865,33918.0,33912.0,0.96230176]
[1625567845601,0.50912057,33917.0,33912.0,0.96230176]
[1625567845699,0.50912057,33917.0,33912.0,1.29869176]
[1625567845799,0.50912057,33917.0,33912.0,1.41669176]
[1625567845899,0.24057544,33925.0,33916.0,4.636]
[1625567845900,0.50952228,33919.0,33916.0,4.636]
[1625567846098,0.50952228,33919.0,33916.0,4.695]
[1625567846201,0.50978664,33921.0,33916.0,4.695]
[1625567846399,1.18919445,33922.0,33916.0,4.695]
[1625567846602,0.50953555,33922.0,33916.0,4.695]
[1625567846699,0.50953555,33922.0,33916.0,4.754]
[1625567847152,0.50985129,33924.0,33916.0,4.754]
[1625567847603,0.50985129,33924.0,33923.0,0.72172632]
[1625567847801,0.50985129,33924.0,33923.0,1.02881632]
[1625567847902,1.18967029,33925.0,33923.0,1.02881632]
[1625567848152,0.50997699,33924.0,33923.0,1.02881632]
[1625567849807,0.50997699,33924.0,33923.0,0.72172632]
[1625567849907,0.84752699,33924.0,33923.0,0.72172632]
[1625567850006,1.58619729,33924.0,33923.0,0.72172632]
[1625567850709,0.39655,33924.0,33923.0,0.72172632]
[1625567851008,2.77387805,33924.0,33923.0,0.72172632]
[1625567851209,2.71487805,33924.0,33923.0,0.66272632]
[1625567851308,4.13232762,33924.0,33923.0,0.66272632]
[1625567851713,4.6134785,33924.0,33923.0,0.66272632]
[1625567855624,4.62993387,33924.0,33923.0,0.66272632]
[1625567855724,6.16062073,33924.0,33923.0,0.66272632]
[1625567856025,6.16062073,33924.0,33912.0,0.24057544]
[1625567856328,1.1896337,33918.0,33912.0,0.24057544]
[1625567856425,0.72982011,33914.0,33912.0,0.24057544]
[1625567856525,0.78882011,33914.0,33912.0,0.24057544]
[1625567856628,0.50960685,33913.0,33912.0,0.24057544]
[1625567856828,0.56860685,33913.0,33912.0,0.24057544]
[1625567856927,1.2480324,33913.0,33912.0,0.24057544]
[1625567857729,1.48860784,33913.0,33912.0,0.24057544]
[1625567860385,2.67982746,33913.0,33912.0,0.24057544]
[1625567861235,2.73882746,33913.0,33912.0,0.24057544]
[1625567861537,4.10252619,33913.0,33912.0,0.24057544]
[1625567863690,4.11898865,33913.0,33912.0,0.24057544]
[1625567873613,5.65358893,33913.0,33912.0,0.24057544]
[1625567875516,6.67695911,33913.0,33912.0,0.24057544]
[1625567877623,5.14235883,33913.0,33912.0,0.24057544]
[1625567879427,5.14235883,33913.0,33907.0,0.001]
[1625567879729,4.77376665,33908.0,33907.0,0.001]
[1625567879827,5.08590665,33908.0,33907.0,0.001]
[1625567879929,5.68505753,33908.0,33907.0,0.001]
[1625567880032,7.21809284,33908.0,33907.0,0.001]
[1625567880229,7.23457531,33908.0,33907.0,0.001]
[1625567880331,0.058,33907.0,33905.0,0.92]
[1625567880428,6.29818323,33906.0,33905.0,0.861]
[1625567880629,6.35718323,33906.0,33905.0,0.861]
[1625567880730,6.37366641,33906.0,33905.0,0.861]
[1625567881481,6.40855616,33906.0,33905.0,0.861]
[1625567881785,6.43266641,33906.0,33905.0,0.861]
[1625567881984,6.67324185,33906.0,33905.0,0.861]
[1625567882336,6.70813166,33906.0,33905.0,0.861]
[1625567887593,6.67324185,33906.0,33905.0,0.861]
[1625567893305,1.90697094,33906.0,33905.0,0.861]
[1625567893704,6.69261468,33906.0,33905.0,0.861]
[1625567897561,5.16070236,33906.0,33905.0,0.861]
[1625567898165,6.70599746,33906.0,33905.0,0.861]
[1625567898361,5.16070236,33906.0,33905.0,0.861]
[1625567898863,6.70577689,33906.0,33905.0,0.861]
[1625567899317,5.16070236,33906.0,33905.0,0.861]
[1625567900516,6.70663843,33906.0,33905.0,0.861]
[1625567900767,5.16070236,33906.0,33905.0,0.861]
[1625567901469,6.70665382,33906.0,33905.0,0.861]
[1625567901717,5.16070236,33906.0,33905.0,0.861]
[1625567908131,5.16070236,33906.0,33905.0,1.10157544]
[1625567909130,5.19558995,33906.0,33905.0,1.10157544]
[1625567909732,6.72993423,33906.0,33905.0,1.10157544]
[1625567911134,1.94429049,33906.0,33905.0,1.10157544]
[1625567911493,6.71550721,33906.0,33905.0,1.10157544]
[1625567917098,6.97844721,33906.0,33905.0,1.10157544]
[1625567928882,8.68762315,33906.0,33905.0,1.10157544]
[1625567932343,8.68762315,33906.0,33905.0,0.861]
[1625567932794,8.89270767,33906.0,33905.0,0.861]
[1625567932994,8.83370767,33906.0,33905.0,0.861]
[1625567933094,8.90349392,33906.0,33905.0,0.45301941]
[1625567933195,8.90349392,33906.0,33900.0,0.001]
[1625567933294,8.89270767,33906.0,33900.0,0.001]
[1625567933398,8.02888642,33901.0,33900.0,0.001]
[1625567933595,8.14688642,33901.0,33900.0,0.001]
[1625567933894,8.1983373,33901.0,33900.0,0.001]
[1625567934245,8.67948818,33901.0,33900.0,0.001]
[1625567934444,8.62048818,33901.0,33900.0,0.001]
[1625567935347,8.67948818,33901.0,33900.0,0.001]
[1625567935598,8.62048818,33901.0,33900.0,0.001]
[1625567936201,6.91229806,33901.0,33900.0,0.001]
[1625567936301,6.87740411,33901.0,33900.0,0.001]
[1625567936401,6.93640411,33901.0,33900.0,0.001]
[1625567936503,6.97129715,33901.0,33900.0,0.001]
[1625567936702,8.68027535,33901.0,33900.0,0.001]
[1625567937753,8.62127535,33901.0,33900.0,0.001]
[1625567937854,8.58638231,33901.0,33900.0,0.001]
[1625567937954,6.87740411,33901.0,33900.0,0.001]
[1625567941276,8.58739452,33901.0,33900.0,0.001]
[1625567944821,6.87740411,33901.0,33900.0,0.001]
[1625567944922,6.93640411,33901.0,33900.0,0.001]
[1625567947228,7.16363411,33901.0,33900.0,0.001]
[1625567947329,7.16363411,33901.0,33899.0,1.19807544]
[1625567947530,6.31938432,33900.0,33899.0,1.19807544]
[1625567947630,6.37838432,33900.0,33899.0,1.19807544]
[1625567947731,6.43738432,33900.0,33899.0,1.19807544]
[1625567947832,6.453934,33900.0,33899.0,1.19807544]
[1625567948135,6.394934,33900.0,33899.0,1.19807544]
[1625567948335,6.453934,33900.0,33899.0,1.19807544]
[1625567952094,6.43738432,33900.0,33899.0,1.19807544]
[1625567952345,6.4539341,33900.0,33899.0,1.19807544]
[1625567953145,6.3949341,33900.0,33899.0,1.19807544]
[1625567956005,6.4539341,33900.0,33899.0,1.19807544]
[1625567956407,6.48882934,33900.0,33899.0,1.19807544]
[1625567957908,6.48882934,33900.0,33899.0,0.9575]
[1625567959013,8.13575881,33900.0,33899.0,0.9575]
[1625567959464,6.42982934,33900.0,33899.0,0.9575]
[1625567960366,6.48882934,33900.0,33899.0,0.9575]
[1625567963523,6.42982934,33900.0,33899.0,0.9575]
[1625567963620,6.37082934,33900.0,33899.0,0.9575]
[1625567964473,6.37082934,33900.0,33899.0,1.19807544]
[1625567966733,6.37082934,33900.0,33899.0,1.25707544]
[1625567966856,6.37082934,33900.0,33899.0,1.31607544]
[1625567966945,6.37082934,33900.0,33899.0,1.84179544]
[1625567966947,6.3359341,33900.0,33899.0,1.84179544]
[1625567967236,4.79886502,33900.0,33899.0,3.5824583]
[1625567967485,4.79886502,33900.0,33899.0,4.80089281]
[1625567968038,3.43256242,33900.0,33899.0,4.80089281]
[1625567968539,4.80315548,33900.0,33899.0,4.80089281]
[1625567968692,3.43256242,33900.0,33899.0,4.80089281]
[1625567968891,4.80299596,33900.0,33899.0,3.5824583]
[1625567969839,4.80299596,33900.0,33899.0,3.57896897]
[1625567973695,4.80299596,33900.0,33899.0,3.51996897]
[1625567973798,4.80299596,33900.0,33899.0,3.57896897]
[1625567973895,4.80299596,33900.0,33899.0,3.51996897]
[1625567973997,4.80299596,33900.0,33899.0,3.46096897]
[1625567974246,4.80299596,33900.0,33899.0,2.41655657]
[1625567979557,4.80299596,33900.0,33899.0,1.72028164]
[1625567981462,4.80299596,33900.0,33899.0,1.77928164]
[1625567981561,4.80299596,33900.0,33899.0,2.41652995]
[1625567981963,4.80299596,33900.0,33899.0,1.72028164]
[1625567982664,4.80299596,33900.0,33899.0,2.41657608]
[1625567983115,4.80299596,33900.0,33899.0,1.72028164]
[1625567983315,4.80299596,33900.0,33899.0,2.41656732]
[1625567983565,4.80299596,33900.0,33899.0,1.72028164]
[1625567983665,4.80299596,33900.0,33899.0,1.95375164]
[1625567983765,4.80299596,33900.0,33899.0,2.01275164]
[1625567983866,4.80299596,33900.0,33899.0,3.81240869]
[1625567986117,0.01654978,33900.0,33899.0,1.54954544]
[1625567986521,0.01654978,33900.0,33899.0,3.81221789]
[1625567986522,4.82954556,33900.0,33899.0,3.81221789]
[1625567987170,4.82954556,33900.0,33899.0,5.03057463]
[1625567988024,3.45447756,33900.0,33899.0,5.03057463]
[1625567989779,3.45447756,33900.0,33899.0,3.81221789]
[1625567989780,4.82790823,33900.0,33899.0,3.81221789]
[1625567990082,3.43792778,33900.0,33899.0,5.03380912]
[1625567990280,0.51575791,33900.0,33899.0,6.42577057]
[1625567990488,0.68864114,33901.0,33899.0,6.42577057]
[1625567990489,0.68864114,33901.0,33899.0,8.43666672]
[1625567990490,0.51718104,33901.0,33899.0,8.43666672]
[1625567990594,0.51718104,33901.0,33900.0,0.24057544]
[1625567990787,0.51718104,33901.0,33900.0,6.79554514]
[1625567990788,0.17311766,33901.0,33900.0,6.79554514]
[1625567990987,0.001,33901.0,33900.0,6.79554514]
[1625567991182,0.001,33901.0,33900.0,6.79903362]
[1625567993388,0.68810117,33905.0,33900.0,6.79903362]
[1625567993688,0.68810117,33905.0,33904.0,4.3460328]
[1625567993787,0.68810117,33905.0,33904.0,4.4050328]
[1625567993888,0.68810117,33905.0,33904.0,4.4640328]
[1625567993988,0.69016904,33906.0,33904.0,4.46752106]
[1625567994192,0.69016904,33906.0,33905.0,2.95381973]
[1625567994390,0.69016904,33906.0,33905.0,3.07181973]
[1625567994590,0.69016904,33906.0,33905.0,3.55297061]
[1625567994791,0.69016904,33906.0,33905.0,3.55645878]
[1625567994993,0.002,33906.0,33905.0,4.94649532]
[1625567995392,0.69051745,33906.0,33905.0,4.94649532]
[1625567995592,0.69051745,33906.0,33905.0,4.94300715]
[1625567995945,0.002,33906.0,33905.0,3.55297061]
[1625567996047,1.32253239,33911.0,33907.0,4.5475]
[1625567996153,1.20518956,33912.0,33910.0,1.04202902]
[1625567996345,1.20518956,33912.0,33910.0,1.10102902]
[1625567996445,1.21023528,33916.0,33911.0,1.21564278]
[1625567996646,1.21023528,33916.0,33915.0,0.30313851]
[1625567996848,1.21023528,33916.0,33915.0,0.42113851]
[1625567996948,1.22679326,33916.0,33915.0,0.42113851]
[1625567997698,1.21023528,33916.0,33915.0,0.42113851]
[1625567997899,0.004,33916.0,33915.0,0.42113851]
[1625567999103,1.21099108,33916.0,33915.0,0.42113851]
[1625567999305,1.21099108,33916.0,33915.0,5.20973851]
[1625568001910,1.52701108,33916.0,33915.0,0.42113851]
[1625568002117,1.52701108,33916.0,33915.0,0.36213851]
[1625568002218,1.52701108,33916.0,33915.0,0.30313851]
[1625568002812,1.76758652,33916.0,33915.0,0.06256307]
[1625568003012,1.76758652,33916.0,33912.0,0.08670925]
[1625568003113,1.78414622,33916.0,33912.0,0.08670925]
[1625568003213,1.84314622,33916.0,33912.0,0.08670925]
[1625568003314,0.2929,33915.0,33912.0,0.08670925]
[1625568003414,1.20781025,33913.0,33910.0,0.08671411]
[1625568003672,0.30946063,33915.0,33906.0,0.24057544]
[1625568003673,0.30946063,33915.0,33906.0,0.3272844]
[1625568003674,1.2066261,33911.0,33906.0,0.3272844]
[1625568003763,1.2066261,33911.0,33910.0,0.059]
[1625568003867,0.2929,33915.0,33910.0,0.059]
[1625568003868,1.5511508,33913.0,33910.0,0.059]
[1625568004065,1.5511508,33913.0,33906.0,0.3272844]
[1625568004165,1.20671358,33911.0,33907.0,0.08670803]
[1625568004369,1.20671358,33911.0,33907.0,0.14570803]
[1625568004566,1.20644581,33908.0,33907.0,0.059]
[1625568004666,1.42620581,33908.0,33907.0,0.059]
[1625568004766,0.21976,33908.0,33907.0,0.059]
[1625568004867,0.70091088,33908.0,33907.0,0.059]
[1625568005268,1.9070204,33908.0,33907.0,0.059]
[1625568005768,1.9070204,33908.0,33907.0,0.118]
[1625568006220,0.70091088,33908.0,33907.0,0.118]
[1625568006321,0.70091088,33908.0,33907.0,0.059]
[1625568006670,0.70091088,33908.0,33907.0,0.14570415]
[1625568006970,0.70091088,33908.0,33907.0,0.20470415]
[1625568007320,0.70091088,33908.0,33907.0,0.08670415]
[1625568007421,0.70091088,33908.0,33907.0,0.14570415]
[1625568007723,0.70091088,33908.0,33907.0,0.08670415]
[1625568007823,0.70091088,33908.0,33907.0,0.14570415]
[1625568007923,0.70091088,33908.0,33907.0,0.08670415]
[1625568008122,0.70091088,33908.0,33906.0,4.76227653]
[1625568008322,1.90437599,33908.0,33906.0,4.76227653]
[1625568008623,1.90437599,33908.0,33906.0,4.67557544]
[1625568008823,1.20342394,33907.0,33906.0,4.67557544]
[1625568009125,1.20342394,33907.0,33904.0,0.0867114]
[1625568009378,0.70091088,33908.0,33903.0,0.3272898]
[1625568009379,1.20295503,33906.0,33903.0,0.3272898]
[1625568009875,1.20261775,33905.0,33903.0,0.3272898]
[1625568010077,1.20261775,33905.0,33903.0,0.24057544]
[1625568010725,1.20261775,33905.0,33903.0,0.32729739]
[1625568010929,0.24057544,33904.0,33903.0,0.08672195]
[1625568011426,0.24057544,33904.0,33903.0,0.14572195]
[1625568011537,0.24057544,33904.0,33903.0,0.08672195]
[1625568011639,0.24057544,33904.0,33903.0,0.14572195]
[1625568011729,0.24057544,33904.0,33899.0,2.41216021]
[1625568011932,0.24057544,33904.0,33903.0,0.08672439]
[1625568012240,0.24057544,33904.0,33899.0,2.41216021]
[1625568012241,0.24057544,33904.0,33902.0,0.0867264]
[1625568012630,0.24057544,33904.0,33903.0,0.08673311]
[1625568012880,0.24057544,33904.0,33899.0,1.19807544]
[1625568012881,0.24057544,33904.0,33902.0,0.08673345]
[1625568013334,0.24057544,33904.0,33903.0,0.001]
[1625568013335,1.44338537,33904.0,33903.0,0.001]
[1625568013584,0.24057544,33904.0,33903.0,0.001]
[1625568013838,1.44328563,33904.0,33903.0,0.001]
[1625568013941,1.45984906,33904.0,33903.0,0.001]
[1625568016348,1.45984906,33904.0,33901.0,0.08675083]
[1625568016441,1.45984906,33904.0,33899.0,1.19907544]
[1625568016442,1.45984906,33904.0,33900.0,0.08675693]
[1625568016444,2.83171585,33904.0,33900.0,0.08675693]
[1625568016549,2.89071585,33904.0,33900.0,0.08675693]
[1625568016647,2.89071585,33904.0,33899.0,0.9585]
[1625568016648,2.89071585,33904.0,33899.0,1.04526721]
[1625568016649,1.199724,33901.0,33899.0,1.04526721]
[1625568016843,1.489224,33901.0,33899.0,1.04526721]
[1625568016954,1.489224,33901.0,33899.0,0.9585]
[1625568016955,1.68011712,33900.0,33899.0,0.9585]
[1625568017152,3.06664423,33900.0,33899.0,0.9585]
[1625568018445,3.12564423,33900.0,33899.0,0.9585]
[1625568018544,4.72249469,33900.0,33899.0,0.0001]
[1625568018944,3.52352845,33900.0,33899.0,0.0001]
[1625568019144,3.52352845,33900.0,33889.0,0.08979616]
[1625568019346,1.19464951,33892.0,33890.0,0.08679624]
[1625568019445,3.7703,33891.0,33890.0,0.08679624]
[1625568019645,3.8293,33891.0,33890.0,0.08679624]
[1625568019749,3.7703,33891.0,33890.0,0.08679624]
[1625568020096,5.023776,33891.0,33889.0,0.08981248]
[1625568020947,0.72172632,33890.0,33889.0,0.08981248]
[1625568021046,0.78072632,33890.0,33889.0,0.08981248]
[1625568022401,0.78072632,33890.0,33889.0,0.08681248]
[1625568022549,0.83972632,33890.0,33889.0,0.08681248]
[1625568022651,0.83972632,33890.0,33888.0,0.003]
[1625568022852,2.03152726,33890.0,33888.0,0.003]
[1625568022952,0.24057544,33889.0,33888.0,0.003]
[1625568023050,0.29957544,33889.0,33888.0,0.003]
[1625568023152,0.35857544,33889.0,33888.0,0.003]
[1625568023253,0.35857544,33889.0,33883.0,0.004]
[1625568023360,0.35857544,33889.0,33886.0,0.08676712]
[1625568023362,1.54996571,33889.0,33886.0,0.08676712]
[1625568023654,2.55020001,33887.0,33883.0,0.004]
[1625568023754,2.60920001,33887.0,33883.0,0.004]
[1625568023855,1.45386691,33884.0,33883.0,0.004]
[1625568023956,1.57186691,33884.0,33883.0,0.004]
[1625568024057,2.9304706,33884.0,33883.0,0.004]
[1625568024912,1.57186691,33884.0,33883.0,0.004]
[1625568025010,2.05301779,33884.0,33883.0,0.004]
[1625568026414,3.07144037,33884.0,33883.0,0.004]
[1625568027866,1.88227346,33884.0,33883.0,0.004]
[1625568028267,1.88227346,33884.0,33878.0,0.08763151]
[1625568028617,0.08493098,33882.0,33878.0,0.08763151]
[1625568028816,0.08490959,33881.0,33878.0,0.08763151]
[1625568028917,0.14390959,33881.0,33878.0,0.001]
[1625568029018,0.48115088,33879.0,33878.0,0.001]
[1625568029118,0.54015088,33879.0,33878.0,0.001]
[1625568029319,0.59915088,33879.0,33878.0,0.001]
[1625568029722,0.54015088,33879.0,33878.0,0.001]
[1625568029818,0.59915088,33879.0,33878.0,0.001]
[1625568029923,0.68398019,33879.0,33878.0,0.001]
[1625568030120,0.59915088,33879.0,33878.0,0.001]
[1625568033129,0.68377353,33879.0,33878.0,0.001]
[1625568034185,0.62477353,33879.0,33878.0,0.001]
[1625568034383,0.68377353,33879.0,33878.0,0.001]
[1625568034486,0.59915088,33879.0,33878.0,0.001]
[1625568035233,0.68368402,33879.0,33878.0,0.001]
[1625568036439,0.59915088,33879.0,33878.0,0.001]
[1625568036687,1.60933069,33879.0,33878.0,0.001]
[1625568036938,0.59915088,33879.0,33878.0,0.001]
[1625568037588,1.6091852,33879.0,33878.0,0.001]
[1625568038795,2.1091852,33879.0,33878.0,0.001]
[1625568039300,1.6091852,33879.0,33878.0,0.001]
[1625568040101,0.59915088,33879.0,33878.0,0.001]
[1625568040298,0.59915088,33879.0,33873.0,0.001]
[1625568040401,1.60778819,33879.0,33873.0,0.001]
[1625568040649,0.08416558,33876.0,33873.0,0.001]
[1625568040748,0.44947558,33876.0,33873.0,0.001]
[1625568040848,0.50847558,33876.0,33873.0,0.001]
[1625568041250,0.48115088,33874.0,33873.0,0.001]
[1625568041351,0.59915088,33874.0,33873.0,0.001]
[1625568043453,1.09915088,33874.0,33873.0,0.001]
[1625568043554,0.59915088,33874.0,33873.0,0.001]
[1625568044505,1.09915088,33874.0,33873.0,0.001]
[1625568045007,1.18306645,33874.0,33873.0,0.001]
[1625568045761,1.09915088,33874.0,33873.0,0.001]
[1625568046008,0.59915088,33874.0,33873.0,0.001]
[1625568046208,1.09915088,33874.0,33873.0,0.001]
[1625568046309,1.09915088,33874.0,33868.0,0.001]
[1625568046410,1.18304526,33874.0,33868.0,0.001]
[1625568046713,1.09915088,33874.0,33868.0,0.001]
[1625568046911,0.59915088,33874.0,33868.0,0.001]
[1625568047012,0.68299143,33874.0,33868.0,0.001]
[1625568047212,1.18299143,33874.0,33868.0,0.001]
[1625568047312,0.79569088,33869.0,33868.0,0.001]
[1625568047412,0.85469088,33869.0,33868.0,0.001]
[1625568047514,1.35469088,33869.0,33868.0,0.001]
[1625568047621,1.41369088,33869.0,33868.0,0.001]
[1625568048113,1.43029416,33869.0,33858.0,0.003]
[1625568048217,0.08358886,33865.0,33858.0,0.003]
[1625568048414,0.14258886,33865.0,33853.0,0.004]
[1625568048515,0.08357162,33864.0,33853.0,0.004]
[1625568048617,0.60017616,33864.0,33853.0,0.004]
[1625568048715,0.65917616,33864.0,33853.0,0.004]
[1625568048815,0.71817616,33864.0,33853.0,0.004]
[1625568048914,0.01660482,33863.0,33853.0,0.004]
[1625568049017,0.5,33862.0,33853.0,0.004]
[1625568049117,0.74189,33862.0,33853.0,0.004]
[1625568049219,0.96230176,33854.0,33853.0,0.004]
[1625568049316,1.22330176,33854.0,33845.0,0.9495]
[1625568049417,3.99846,33846.0,33845.0,0.9495]
[1625568051221,4.72018632,33846.0,33845.0,0.9495]
[1625568054044,4.77918632,33846.0,33845.0,0.9495]
[1625568054135,4.83818632,33846.0,33845.0,0.9495]
[1625568054782,4.77918632,33846.0,33845.0,0.9495]
[1625568054883,4.72018632,33846.0,33845.0,0.9495]
[1625568055439,0.72172632,33846.0,33845.0,1.0085]
[1625568057041,0.72172632,33846.0,33845.0,0.9495]
[1625568057644,0.78072632,33846.0,33845.0,0.9495]
[1625568058196,0.72172632,33846.0,33845.0,0.9495]
[1625568058447,0.78072632,33846.0,33845.0,0.9495]
[1625568058897,0.72172632,33846.0,33845.0,0.9495]
[1625568058997,0.72172632,33846.0,33835.0,0.24057544]
[1625568059098,4.0758,33844.0,33835.0,0.24057544]
[1625568059198,4.1938,33844.0,33835.0,0.24057544]
[1625568059298,0.71354088,33836.0,33835.0,0.24057544]
[1625568059698,0.71354088,33836.0,33835.0,0.29957544]
[1625568059899,0.71354088,33836.0,33835.0,0.30157544]
[1625568060651,0.48115088,33836.0,33835.0,0.30157544]
[1625568061666,0.48115088,33836.0,33835.0,0.24257544]
[1625568061863,0.48115088,33836.0,33835.0,0.30157544]
[1625568062004,0.48115088,33836.0,33835.0,0.36057544]
[1625568062704,0.48115088,33836.0,33835.0,0.30157544]
[1625568062962,0.48115088,33836.0,33835.0,0.24257544]
[1625568063482,0.48115088,33836.0,33835.0,0.002]
[1625568063483,0.73526088,33836.0,33835.0,0.002]
[1625568065361,0.97583632,33836.0,33835.0,0.002]
[1625568065861,1.03483632,33836.0,33835.0,0.002]
[1625568067316,1.03483632,33836.0,33830.0,0.001]
[1625568067515,1.03483632,33836.0,33830.0,0.06]
[1625568068167,1.03483632,33836.0,33830.0,0.001]
[1625568068281,1.09383632,33836.0,33830.0,0.001]
[1625568068483,1.59383632,33836.0,33830.0,0.001]
[1625568069074,1.59383632,33836.0,33809.0,0.68621683]
[1625568069278,0.059,33828.0,33809.0,0.68621683]
[1625568069391,0.059,33828.0,33811.0,0.24057544]
[1625568069392,0.48115088,33812.0,33811.0,0.24057544]
[1625568069574,0.80429088,33812.0,33811.0,0.24057544]
[1625568069771,0.86329088,33812.0,33811.0,0.24057544]
[1625568070068,0.86329088,33812.0,33806.0,0.9062]
[1625568071474,0.48115088,33807.0,33806.0,0.9062]
[1625568071574,0.54015088,33807.0,33806.0,0.9062]
[1625568072525,0.48115088,33807.0,33806.0,0.9062]
[1625568072874,0.54015088,33807.0,33806.0,0.9062]
[1625568072975,0.69908088,33807.0,33806.0,0.9062]
[1625568073076,0.75808088,33807.0,33806.0,0.9062]
[1625568073625,0.69908088,33807.0,33806.0,0.9062]
[1625568074228,0.48115088,33807.0,33806.0,0.9062]
[1625568074829,0.48115088,33807.0,33806.0,0.9652]
[1625568074930,0.48115088,33807.0,33806.0,1.0242]
[1625568076330,0.48315088,33812.0,33806.0,1.0242]
[1625568076435,0.48315088,33812.0,33806.0,1.3663]
[1625568076542,0.002,33812.0,33806.0,1.3663]
[1625568076935,0.003,33817.0,33806.0,1.3663]
[1625568076937,0.003,33817.0,33809.0,0.08561095]
[1625568077031,0.003,33817.0,33807.0,0.68488762]
[1625568077032,0.003,33817.0,33812.0,0.059]
[1625568077231,0.003,33817.0,33812.0,0.118]
[1625568077432,0.003,33817.0,33812.0,0.059]
[1625568077533,0.004,33822.0,33817.0,0.056]
[1625568077632,0.004,33822.0,33817.0,0.36498]
[1625568079085,0.004,33822.0,33817.0,0.30898]
[1625568079188,0.004,33822.0,33817.0,0.36798]
[1625568079284,0.003,33818.0,33817.0,0.36798]
[1625568082242,0.003,33818.0,33817.0,0.118]
[1625568082342,0.003,33818.0,33817.0,0.059]
[1625568082442,0.003,33818.0,33817.0,0.118]
[1625568082543,0.003,33818.0,33817.0,0.059]
[1625568082643,0.003,33818.0,33817.0,0.118]
[1625568082745,0.003,33818.0,33817.0,0.059]
[1625568083994,0.003,33818.0,33816.0,0.96230176]
[1625568084298,0.062,33818.0,33816.0,0.96230176]
[1625568084745,0.003,33818.0,33816.0,0.96230176]
[1625568085396,0.062,33818.0,33816.0,1.02130176]
[1625568085496,0.003,33818.0,33816.0,1.02130176]
[1625568086249,0.062,33818.0,33816.0,1.02130176]
[1625568086349,0.003,33818.0,33816.0,1.02130176]
[1625568087053,0.062,33818.0,33816.0,0.96230176]
[1625568087504,0.062,33818.0,33816.0,1.02130176]
[1625568087606,0.24057544,33817.0,33816.0,1.02130176]
[1625568087806,0.29957544,33817.0,33816.0,1.02130176]
[1625568088258,0.29957544,33817.0,33816.0,0.96230176]
[1625568089811,0.24057544,33817.0,33816.0,0.96230176]
[1625568090012,0.24057544,33817.0,33816.0,1.02130176]
[1625568091162,0.001,33819.0,33816.0,1.02130176]
[1625568092215,0.001,33819.0,33816.0,0.96230176]
[1625568092616,0.06,33819.0,33816.0,0.96230176]
[1625568092717,0.001,33819.0,33816.0,0.96230176]
[1625568092917,0.06,33819.0,33816.0,1.02130176]
[1625568093018,0.001,33819.0,33816.0,1.02130176]
[1625568093569,0.06,33819.0,33816.0,1.02130176]
[1625568093669,0.001,33819.0,33816.0,1.02130176]
[1625568094221,0.001,33819.0,33816.0,0.96230176]
[1625568094623,0.119,33819.0,33816.0,0.48115088]
[1625568094723,0.119,33819.0,33812.0,0.001]
[1625568094824,0.42401,33819.0,33812.0,0.001]
[1625568095673,0.72172632,33813.0,33812.0,0.001]
[1625568095772,0.78072632,33813.0,33812.0,0.001]